[Event "I Liga Centralne Srbije"]
[Site "Bajina Bašta, Serbia"]
[Date "2020.10.15"]
[Round "9.1"]
[White "Kojovic, Dragan"]
[Black "Ivic, Velimir"]
[Result "0-1"]
[ECO "D95"]
[WhiteElo "2307"]
[BlackElo "2548"]
[Annotator "Knez"]
[PlyCount "80"]
[EventDate "2020.??.??"]
[TimeControl "90"]

1. d4 {[%emt 0:34:20]} Nf6 {[%emt 0:00:41]} 2. c4 {[%emt 0:00:10]} g6 {[%emt 0:
00:12]} 3. Nc3 {[%emt 0:00:10]} d5 {[%emt 0:00:05]} 4. Nf3 {[%emt 0:04:11]} Bg7
{[%emt 0:00:08]} 5. e3 {[%emt 0:02:13]} O-O {[%emt 0:01:31]} 6. Qb3 {[%emt 0:
02:39]} e6 {[%emt 0:01:11]} 7. Bd2 {[%emt 0:00:57]} b6 {[%emt 0:02:15]} 8. cxd5
{[%emt 0:05:51]} exd5 {[%emt 0:01:29]} 9. Be2 {[%emt 0:03:13]} Bb7 {[%emt 0:13:
42]} 10. O-O {[%emt 0:02:01]} Nbd7 {[%emt 0:00:50]} 11. Rfd1 {[%emt 0:01:55]}
c5 {[%emt 0:03:48]} 12. dxc5 {[%emt 0:02:58]} Nxc5 {[%emt 0:00:06]} 13. Qa3 {
[%emt 0:00:25]} Re8 {[%emt 0:08:23]} 14. Be1 {[%emt 0:03:30]} Bf8 {[%emt 0:12:
55]} 15. b4 {[%emt 0:06:37]} Ncd7 {[%emt 0:00:40]} 16. Qb3 {[%emt 0:03:37]} Rc8
{[%emt 0:03:48]} 17. Rac1 {[%emt 0:14:04]} a6 {[%emt 0:03:19]} 18. h3 {[%emt 0:
04:37]} Qe7 {[%emt 0:03:27]} 19. a3 {[%emt 0:01:57]} Red8 {[%emt 0:04:14]} 20.
Rc2 {[%emt 0:22:05]} Ne5 {[%emt 0:04:51]} 21. Nd4 {[%emt 0:12:18]} Nc4 {
[%emt 0:05:36]} 22. Bf3 {[%emt 0:01:26]} Qe5 {[%emt 0:03:06]} 23. Nce2 {
[%emt 0:00:45]} Bd6 {[%emt 0:03:19]} 24. g3 {[%emt 0:00:27]} Ne4 {[%emt 0:00:
27]} 25. Bg2 {[%emt 0:00:18]} h5 {[%emt 0:06:25]} 26. f4 {[%emt 0:02:35]} Qe8 {
[%emt 0:00:47]} 27. Nf3 {[%emt 0:02:05]} Bc6 {[%emt 0:00:56]} 28. Ned4 {
[%emt 0:00:40]} Ba4 {[%emt 0:00:13]} 29. Qd3 {[%emt 0:00:25]} Bxc2 {[%emt 0:00:
10]} 30. Nxc2 {[%emt 0:00:07]} Nb2 {[%emt 0:00:07]} 31. Qe2 {[%emt 0:00:53]}
Nxd1 {[%emt 0:00:13]} 32. Qxd1 {[%emt 0:00:07]} Bf8 {[%emt 0:00:45]} 33. g4 {
[%emt 0:00:51]} hxg4 {[%emt 0:00:52]} 34. hxg4 {[%emt 0:00:07]} Qa4 {[%emt 0:
02:10]} 35. Nfd4 {[%emt 0:00:35]} Bg7 {[%emt 0:00:05]} 36. Qd3 {[%emt 0:00:31]}
Bxd4 {[%emt 0:00:37]} 37. Nxd4 {[%emt 0:00:33]} Rc1 {[%emt 0:00:15]} 38. Nf3 {
[%emt 0:00:29]} Qd1 {[%emt 0:00:36]} 39. Qxa6 {[%emt 0:00:23]} Nd2 {[%emt 0:00:
12]} 40. Nxd2 {[%emt 0:00:40]} Qxd2 {[%emt 0:00:06]} 0-1

[Event "I Liga Centralne Srbije"]
[Site "Bajina Bašta, Serbia"]
[Date "2020.10.15"]
[Round "9.1"]
[White "Perunovic, Miodrag"]
[Black "Ostojic, Nikola"]
[Result "1/2-1/2"]
[ECO "E11"]
[WhiteElo "2440"]
[BlackElo "2406"]
[Annotator "Knez"]
[PlyCount "81"]
[EventDate "2020.??.??"]
[TimeControl "90"]
[WhiteClock "0:02:16"]
[BlackClock "0:02:06"]

1. d4 {[%emt 0:00:00]} Nf6 {[%emt 0:00:00]} 2. Nf3 {[%emt 0:00:00]} e6 {
[%emt 0:00:00]} 3. c4 {[%emt 0:00:00]} Bb4+ {[%emt 0:00:00]} 4. Bd2 {[%emt 0:
00:00]} a5 {[%emt 0:00:00]} 5. g3 {[%emt 0:00:00]} O-O {[%emt 0:00:00]} 6. Bg2
{[%emt 0:00:00]} d5 {[%emt 0:00:00]} 7. O-O {[%emt 0:00:00]} Be7 {[%emt 0:00:
00]} 8. Qc2 {[%emt 0:00:00]} c6 {[%emt 0:00:00]} 9. Rd1 {[%emt 0:00:00]} Nbd7 {
[%emt 0:00:00]} 10. Bg5 {[%emt 0:00:00]} b6 {[%emt 0:00:00]} 11. Nbd2 {[%emt 0:
00:00]} Ba6 {[%emt 0:00:00]} 12. b3 {[%emt 0:00:00]} Rc8 {[%emt 0:00:00]} 13.
e4 {[%emt 0:00:00]} c5 {[%emt 0:00:00]} 14. exd5 {[%emt 0:00:00]} exd5 {
[%emt 0:00:00]} 15. Qf5 {[%emt 0:00:00]} h6 {[%emt 0:00:00]} 16. Bf4 {[%emt 0:
00:00]} g6 {[%emt 0:00:00]} 17. Qc2 {[%emt 0:00:00]} Kh7 {[%emt 0:00:00]} 18.
a4 {[%emt 0:00:00]} Bb7 {[%emt 0:00:00]} 19. Ne5 {[%emt 0:00:00]} cxd4 {
[%emt 0:00:00]} 20. Ndf3 {[%emt 0:00:00]} Bc5 {[%emt 0:00:00]} 21. Nxd7 {
[%emt 0:00:00]} Qxd7 {[%emt 0:00:00]} 22. Be5 {[%emt 0:00:00]} Qe7 {[%emt 0:00:
00]} 23. Bxd4 {[%emt 0:00:00]} Bxd4 {[%emt 0:00:03]} 24. Rxd4 {[%emt 0:00:00]}
dxc4 {[%emt 0:00:00]} 25. bxc4 {[%emt 0:00:00]} Bc6 {[%emt 0:00:10]} 26. Rb1 {
[%emt 0:00:00]} Qb7 {[%emt 0:00:17]} 27. Qd1 {[%emt 0:00:00]} Nd7 {[%emt 0:00:
00]} 28. Rd6 {[%emt 0:00:00]} Kg8 {[%emt 0:00:00]} 29. Nh4 {[%emt 0:00:00]} Ne5
{[%emt 0:00:00]} 30. Qd4 {[%emt 0:00:00]} Bxg2 {[%emt 0:00:00]} 31. Qxe5 {
[%emt 0:00:00]} Qe4 {[%emt 0:00:00]} 32. Qa1 {[%emt 0:00:00]} Bh3 {[%emt 0:00:
00]} 33. Re1 {[%emt 0:00:00]} Qc2 {[%emt 0:00:00]} 34. Rxb6 {[%emt 0:00:00]}
Rxc4 {[%emt 0:00:00]} 35. Qe5 {[%emt 0:00:00]} Rc5 {[%emt 0:00:00]} 36. Qe3 {
[%emt 0:00:00]} Qc3 {[%emt 0:00:00]} 37. Qe7 {[%emt 0:00:20]} Rc7 {[%emt 0:00:
00]} 38. Qe4 {[%emt 0:00:00]} Rc4 {[%emt 0:00:00]} 39. Qe7 {[%emt 0:00:00]} Rc7
{[%emt 0:00:00]} 40. Qe4 {[%emt 0:00:00]} Rc4 {[%emt 0:00:00]} 41. Qe7 {
[%emt 0:00:09]} 1/2-1/2

[Event "I Liga Centralne Srbije"]
[Site "Bajina Bašta, Serbia"]
[Date "2020.10.15"]
[Round "9.1"]
[White "Solomunovic, Igor"]
[Black "Pavlovic, Dejan S"]
[Result "0-1"]
[ECO "D45"]
[WhiteElo "2355"]
[BlackElo "2390"]
[Annotator "Knez"]
[PlyCount "112"]
[EventDate "2020.??.??"]
[TimeControl "90"]
[WhiteClock "0:07:53"]
[BlackClock "0:04:16"]

1. d4 {[%emt 0:00:00]} d5 {[%emt 0:00:00]} 2. Nf3 {[%emt 0:00:00]} Nf6 {
[%emt 0:00:00]} 3. c4 {[%emt 0:00:00]} c6 {[%emt 0:00:00]} 4. Nc3 {[%emt 0:00:
00]} e6 {[%emt 0:00:00]} 5. e3 {[%emt 0:00:00]} Nbd7 {[%emt 0:00:00]} 6. Qc2 {
[%emt 0:00:00]} Bd6 {[%emt 0:00:00]} 7. b3 {[%emt 0:00:00]} O-O {[%emt 0:00:00]
} 8. Bb2 {[%emt 0:00:00]} b6 {[%emt 0:00:00]} 9. Be2 {[%emt 0:00:00]} Bb7 {
[%emt 0:00:00]} 10. O-O {[%emt 0:00:00]} Qe7 {[%emt 0:00:00]} 11. e4 {[%emt 0:
00:00]} Nxe4 {[%emt 0:00:00]} 12. Nxe4 {[%emt 0:00:00]} dxe4 {[%emt 0:00:00]}
13. Qxe4 {[%emt 0:00:00]} f5 {[%emt 0:00:00]} 14. Qe3 {[%emt 0:00:00]} c5 {
[%emt 0:00:00]} 15. Rad1 {[%emt 0:00:00]} Rad8 {[%emt 0:00:00]} 16. Rfe1 {
[%emt 0:00:00]} cxd4 {[%emt 0:00:00]} 17. Qxd4 {[%emt 0:00:00]} Nc5 {[%emt 0:
00:00]} 18. Qe3 {[%emt 0:00:00]} Ne4 {[%emt 0:00:00]} 19. Be5 {[%emt 0:00:00]}
Bc5 {[%emt 0:00:00]} 20. Nd4 {[%emt 0:00:00]} f4 {[%emt 0:00:00]} 21. Qh3 {
[%emt 0:00:00]} f3 {[%emt 0:00:00]} 22. Bxf3 {[%emt 0:00:00]} Ng5 {[%emt 0:00:
00]} 23. Qg4 {[%emt 0:00:00]} Bxd4 {[%emt 0:00:00]} 24. Bxb7 {[%emt 0:00:00]}
Bxf2+ {[%emt 0:00:00]} 25. Kh1 {[%emt 0:00:00]} Bxe1 {[%emt 0:00:00]} 26. Rxe1
{[%emt 0:00:00]} Qxb7 {[%emt 0:00:00]} 27. Qxg5 {[%emt 0:00:00]} h6 {[%emt 0:
00:00]} 28. Qg4 {[%emt 0:00:00]} Rf5 {[%emt 0:00:00]} 29. h3 {[%emt 0:00:00]}
Qf7 {[%emt 0:00:00]} 30. Bc3 {[%emt 0:00:00]} Rd3 {[%emt 0:00:00]} 31. Be5 {
[%emt 0:00:00]} Rd2 {[%emt 0:00:00]} 32. Bc3 {[%emt 0:00:02]} Rd3 {[%emt 0:00:
00]} 33. Be5 {[%emt 0:00:16]} Rd7 {[%emt 0:00:00]} 34. Re2 {[%emt 0:00:16]} Rg5
{[%emt 0:00:00]} 35. Qf4 {[%emt 0:00:21]} Qxf4 {[%emt 0:00:00]} 36. Bxf4 {
[%emt 0:00:00]} Rf5 {[%emt 0:00:00]} 37. Be5 {[%emt 0:00:00]} Kf7 {[%emt 0:00:
00]} 38. Kh2 {[%emt 0:00:00]} Rf1 {[%emt 0:00:00]} 39. Bc3 {[%emt 0:00:00]}
Rdd1 {[%emt 0:00:00]} 40. Be5 {[%emt 0:00:03]} Rde1 {[%emt 0:00:00]} 41. Rxe1 {
[%emt 0:00:00]} Rxe1 {[%emt 0:00:00]} 42. Bb8 {[%emt 0:00:00]} a6 {[%emt 0:00:
00]} 43. Bc7 {[%emt 0:00:00]} b5 {[%emt 0:00:00]} 44. cxb5 {[%emt 0:00:00]}
axb5 {[%emt 0:00:00]} 45. a4 {[%emt 0:00:00]} bxa4 {[%emt 0:00:00]} 46. bxa4 {
[%emt 0:00:00]} Rc1 {[%emt 0:00:00]} 47. Bb6 {[%emt 0:00:00]} e5 {[%emt 0:00:
00]} 48. a5 {[%emt 0:00:00]} Ra1 {[%emt 0:00:00]} 49. Kg3 {[%emt 0:00:00]} Ra4
{[%emt 0:00:00]} 50. Kf3 {[%emt 0:00:00]} Ke6 {[%emt 0:00:00]} 51. Ke3 {
[%emt 0:00:00]} Kd5 {[%emt 0:00:00]} 52. Kd3 {[%emt 0:00:00]} Ra2 {[%emt 0:00:
00]} 53. Kc3 {[%emt 0:00:00]} Kc6 {[%emt 0:00:00]} 54. g4 {[%emt 0:00:00]} Ra3+
{[%emt 0:00:00]} 55. Kb4 {[%emt 0:00:00]} Rxh3 {[%emt 0:00:00]} 56. Bd8 {
[%emt 0:00:00]} Rd3 {[%emt 0:00:00]} 0-1

[Event "I Liga Centralne Srbije"]
[Site "Bajina Bašta, Serbia"]
[Date "2020.10.15"]
[Round "9.1"]
[White "Radovanovic, Dusan"]
[Black "Rabrenovic, Vladan"]
[Result "0-1"]
[ECO "C51"]
[WhiteElo "2326"]
[BlackElo "2302"]
[Annotator "Knez"]
[PlyCount "106"]
[EventDate "2020.??.??"]
[TimeControl "90"]
[WhiteClock "0:01:28"]
[BlackClock "0:00:52"]

1. e4 {[%emt 0:00:00]} e5 {[%emt 0:00:00]} 2. Nf3 {[%emt 0:00:00]} Nc6 {
[%emt 0:00:00]} 3. Bc4 {[%emt 0:00:00]} Bc5 {[%emt 0:00:00]} 4. b4 {[%emt 0:00:
00]} Bxb4 {[%emt 0:00:00]} 5. c3 {[%emt 0:00:00]} Be7 {[%emt 0:00:00]} 6. d4 {
[%emt 0:00:00]} Na5 {[%emt 0:00:00]} 7. Bd3 {[%emt 0:00:00]} d6 {[%emt 0:00:00]
} 8. Qa4+ {[%emt 0:00:00]} c6 {[%emt 0:00:00]} 9. Nbd2 {[%emt 0:00:00]} Qc7 {
[%emt 0:00:00]} 10. O-O {[%emt 0:00:00]} Nf6 {[%emt 0:00:00]} 11. Ba3 {[%emt 0:
00:00]} b6 {[%emt 0:00:00]} 12. Rfe1 {[%emt 0:00:00]} O-O {[%emt 0:00:00]} 13.
Nf1 {[%emt 0:00:00]} Re8 {[%emt 0:00:00]} 14. Ng3 {[%emt 0:00:00]} Bf8 {
[%emt 0:00:00]} 15. h3 {[%emt 0:00:00]} b5 {[%emt 0:00:00]} 16. Qd1 {[%emt 0:
00:00]} Be6 {[%emt 0:00:00]} 17. Bc1 {[%emt 0:00:00]} h6 {[%emt 0:00:00]} 18.
Nh2 {[%emt 0:00:00]} Nc4 {[%emt 0:00:00]} 19. Qf3 {[%emt 0:00:00]} Nh7 {
[%emt 0:00:00]} 20. d5 {[%emt 0:00:00]} Bd7 {[%emt 0:00:00]} 21. Ng4 {[%emt 0:
00:00]} Qd8 {[%emt 0:00:00]} 22. a4 {[%emt 0:00:00]} Ng5 {[%emt 0:00:00]} 23.
Qe2 {[%emt 0:00:00]} a6 {[%emt 0:00:00]} 24. dxc6 {[%emt 0:00:00]} Bxc6 {
[%emt 0:00:00]} 25. Nf5 {[%emt 0:00:00]} Re6 {[%emt 0:00:00]} 26. h4 {[%emt 0:
00:00]} Nh7 {[%emt 0:00:00]} 27. g3 {[%emt 0:00:00]} d5 {[%emt 0:00:00]} 28.
axb5 {[%emt 0:00:30]} axb5 {[%emt 0:00:00]} 29. Rxa8 {[%emt 0:00:00]} Bxa8 {
[%emt 0:00:00]} 30. Nge3 {[%emt 0:00:11]} Nxe3 {[%emt 0:00:00]} 31. Nxe3 {
[%emt 0:00:07]} dxe4 {[%emt 0:00:00]} 32. Bxb5 {[%emt 0:00:00]} Rg6 {[%emt 0:
00:00]} 33. Kh2 {[%emt 0:00:00]} Nf6 {[%emt 0:00:15]} 34. Rd1 {[%emt 0:00:00]}
Qc8 {[%emt 0:00:00]} 35. Bc4 {[%emt 0:00:00]} Bc6 {[%emt 0:00:00]} 36. Qa2 {
[%emt 0:00:00]} Be8 {[%emt 0:00:00]} 37. Kg2 {[%emt 0:00:00]} Bc5 {[%emt 0:00:
00]} 38. Nd5 {[%emt 0:00:00]} Ng4 {[%emt 0:00:04]} 39. h5 {[%emt 0:00:00]} Nxf2
{[%emt 0:00:04]} 40. Qxf2 {[%emt 0:00:06]} Qg4 {[%emt 0:00:28]} 41. Ne3 {
[%emt 0:00:00]} Qxh5 {[%emt 0:00:00]} 42. Rd8 {[%emt 0:00:00]} Rf6 {[%emt 0:00:
00]} 43. Rxe8+ {[%emt 0:00:00]} Kh7 {[%emt 0:00:00]} 44. Qe2 {[%emt 0:00:00]}
Rf3 {[%emt 0:00:00]} 45. Rc8 {[%emt 0:00:00]} Bxe3 {[%emt 0:00:00]} 46. Bxe3 {
[%emt 0:00:00]} Qg4 {[%emt 0:00:00]} 47. Bf2 {[%emt 0:00:00]} h5 {[%emt 0:00:
00]} 48. Rc7 {[%emt 0:00:00]} f5 {[%emt 0:00:00]} 49. Rc5 {[%emt 0:00:00]} h4 {
[%emt 0:00:00]} 50. Qe1 {[%emt 0:00:00]} e3 {[%emt 0:00:00]} 51. Be2 {[%emt 0:
00:02]} exf2 {[%emt 0:00:00]} 52. Qh1 {[%emt 0:00:00]} f1=Q+ {[%emt 0:00:00]}
53. Qxf1 {[%emt 0:00:00]} Qxg3+ {[%emt 0:00:00]} 0-1

[Event "I Liga Centralne Srbije"]
[Site "Bajina Bašta, Serbia"]
[Date "2020.10.15"]
[Round "9.1"]
[White "Colovic, Dusan"]
[Black "Radivojevic, Ivan"]
[Result "0-1"]
[ECO "D00"]
[WhiteElo "2255"]
[BlackElo "2365"]
[Annotator "Knez"]
[PlyCount "104"]
[EventDate "2020.??.??"]
[TimeControl "90"]
[WhiteClock "0:03:45"]
[BlackClock "0:12:06"]

1. d4 {[%emt 0:00:00]} Nf6 {[%emt 0:00:00]} 2. Nc3 {[%emt 0:00:00]} d5 {
[%emt 0:00:00]} 3. Bf4 {[%emt 0:00:00]} e6 {[%emt 0:00:00]} 4. e3 {[%emt 0:00:
00]} Bb4 {[%emt 0:00:00]} 5. Nge2 {[%emt 0:00:00]} Ne4 {[%emt 0:00:00]} 6. a3 {
[%emt 0:00:00]} Nxc3 {[%emt 0:00:00]} 7. Nxc3 {[%emt 0:00:00]} Bxc3+ {[%emt 0:
00:00]} 8. bxc3 {[%emt 0:00:00]} c5 {[%emt 0:00:00]} 9. Qg4 {[%emt 0:00:00]}
O-O {[%emt 0:00:00]} 10. Bh6 {[%emt 0:00:00]} Qf6 {[%emt 0:00:00]} 11. Bg5 {
[%emt 0:00:00]} Qg6 {[%emt 0:00:00]} 12. Bd3 {[%emt 0:00:00]} f5 {[%emt 0:00:
00]} 13. Qh4 {[%emt 0:00:00]} Nc6 {[%emt 0:00:00]} 14. O-O {[%emt 0:00:00]} e5
{[%emt 0:00:00]} 15. dxe5 {[%emt 0:00:00]} Nxe5 {[%emt 0:00:00]} 16. Be2 {
[%emt 0:00:00]} Qe6 {[%emt 0:00:00]} 17. Qg3 {[%emt 0:00:00]} Bd7 {[%emt 0:00:
00]} 18. Bf4 {[%emt 0:00:00]} Ng6 {[%emt 0:00:00]} 19. Bf3 {[%emt 0:00:00]} Bc6
{[%emt 0:00:00]} 20. Rfd1 {[%emt 0:00:00]} Rad8 {[%emt 0:00:00]} 21. h4 {
[%emt 0:00:00]} Rf7 {[%emt 0:00:00]} 22. c4 {[%emt 0:00:00]} Nxf4 {[%emt 0:00:
00]} 23. Qxf4 {[%emt 0:00:00]} Rfd7 {[%emt 0:00:00]} 24. cxd5 {[%emt 0:00:00]}
Bxd5 {[%emt 0:00:00]} 25. Bxd5 {[%emt 0:00:00]} Rxd5 {[%emt 0:00:00]} 26. Rxd5
{[%emt 0:00:00]} Qxd5 {[%emt 0:00:00]} 27. c4 {[%emt 0:00:00]} Qf7 {[%emt 0:00:
00]} 28. a4 {[%emt 0:00:00]} b6 {[%emt 0:00:00]} 29. a5 {[%emt 0:00:00]} Qf6 {
[%emt 0:00:00]} 30. Ra2 {[%emt 0:00:00]} Rd1+ {[%emt 0:00:00]} 31. Kh2 {
[%emt 0:00:00]} Qd6 {[%emt 0:00:00]} 32. Qxd6 {[%emt 0:00:00]} Rxd6 {[%emt 0:
00:00]} 33. axb6 {[%emt 0:00:00]} axb6 {[%emt 0:00:00]} 34. Kg3 {[%emt 0:00:00]
} Rg6+ {[%emt 0:00:00]} 35. Kf3 {[%emt 0:00:00]} Rg4 {[%emt 0:00:00]} 36. Rc2 {
[%emt 0:00:00]} Rxh4 {[%emt 0:00:00]} 37. Ke2 {[%emt 0:00:00]} Rh1 {[%emt 0:00:
00]} 38. Rb2 {[%emt 0:00:00]} Rh6 {[%emt 0:00:00]} 39. Kd3 {[%emt 0:00:00]} Re6
{[%emt 0:00:00]} 40. Kc3 {[%emt 0:00:00]} g5 {[%emt 0:00:00]} 41. Kb3 {[%emt 0:
00:00]} h5 {[%emt 0:00:00]} 42. Ka4 {[%emt 0:00:00]} h4 {[%emt 0:00:00]} 43.
Kb5 {[%emt 0:00:00]} g4 {[%emt 0:00:00]} 44. Rb1 {[%emt 0:00:00]} h3 {[%emt 0:
00:00]} 45. gxh3 {[%emt 0:00:00]} gxh3 {[%emt 0:00:00]} 46. Rh1 {[%emt 0:00:00]
} Rh6 {[%emt 0:00:00]} 47. f3 {[%emt 0:00:00]} h2 {[%emt 0:00:00]} 48. e4 {
[%emt 0:00:00]} f4 {[%emt 0:00:00]} 49. e5 {[%emt 0:00:00]} Kf7 {[%emt 0:00:00]
} 50. e6+ {[%emt 0:00:00]} Kxe6 {[%emt 0:00:00]} 51. Kxb6 {[%emt 0:00:00]} Kd6
{[%emt 0:00:00]} 52. Kb5 {[%emt 0:00:00]} Rh8 {[%emt 0:00:00]} 0-1

[Event "I Liga Centralne Srbije"]
[Site "Bajina Bašta, Serbia"]
[Date "2020.10.15"]
[Round "9.1"]
[White "Marcetic, Nikola"]
[Black "Mijatovic, Dusan"]
[Result "1/2-1/2"]
[ECO "D00"]
[WhiteElo "2329"]
[BlackElo "2177"]
[Annotator "Knez"]
[PlyCount "74"]
[EventDate "2020.??.??"]
[TimeControl "90"]
[WhiteClock "0:18:34"]
[BlackClock "0:01:31"]

1. d4 {[%emt 0:00:00]} Nf6 {[%emt 0:00:00]} 2. Bg5 {[%emt 0:00:00]} d5 {
[%emt 0:00:00]} 3. Bxf6 {[%emt 0:00:00]} exf6 {[%emt 0:00:00]} 4. e3 {[%emt 0:
00:00]} Bd6 {[%emt 0:00:00]} 5. c4 {[%emt 0:00:00]} dxc4 {[%emt 0:00:00]} 6.
Bxc4 {[%emt 0:00:00]} c6 {[%emt 0:00:00]} 7. Nc3 {[%emt 0:00:00]} O-O {[%emt 0:
00:00]} 8. Bd3 {[%emt 0:00:00]} f5 {[%emt 0:00:00]} 9. Qf3 {[%emt 0:00:00]} g6
{[%emt 0:00:00]} 10. h3 {[%emt 0:00:00]} Qe7 {[%emt 0:00:00]} 11. Nge2 {
[%emt 0:00:00]} Be6 {[%emt 0:00:00]} 12. g4 {[%emt 0:00:00]} fxg4 {[%emt 0:00:
00]} 13. hxg4 {[%emt 0:00:00]} f5 {[%emt 0:00:00]} 14. gxf5 {[%emt 0:00:00]}
Bxf5 {[%emt 0:00:00]} 15. Bxf5 {[%emt 0:00:00]} Rxf5 {[%emt 0:00:00]} 16. Qg2 {
[%emt 0:00:00]} Nd7 {[%emt 0:00:00]} 17. Rh3 {[%emt 0:00:00]} Re8 {[%emt 0:00:
00]} 18. O-O-O {[%emt 0:00:00]} Qg5 {[%emt 0:00:00]} 19. Qxg5 {[%emt 0:00:00]}
Rxg5 {[%emt 0:00:00]} 20. Rdh1 {[%emt 0:00:00]} Nf6 {[%emt 0:00:00]} 21. a3 {
[%emt 0:00:00]} Rg2 {[%emt 0:00:00]} 22. Nd1 {[%emt 0:00:00]} h5 {[%emt 0:00:
00]} 23. Rg1 {[%emt 0:00:00]} Rxg1 {[%emt 0:00:00]} 24. Nxg1 {[%emt 0:00:00]}
g5 {[%emt 0:00:00]} 25. Ne2 {[%emt 0:00:00]} g4 {[%emt 0:00:00]} 26. Rh1 {
[%emt 0:00:00]} Kg7 {[%emt 0:00:00]} 27. Kd2 {[%emt 0:00:00]} Kg6 {[%emt 0:00:
00]} 28. Ndc3 {[%emt 0:00:00]} Ne4+ {[%emt 0:00:00]} 29. Nxe4 {[%emt 0:00:00]}
Rxe4 {[%emt 0:00:00]} 30. Ng3 {[%emt 0:00:00]} Bxg3 {[%emt 0:00:00]} 31. fxg3 {
[%emt 0:00:00]} Re7 {[%emt 0:00:00]} 32. Rf1 {[%emt 0:00:00]} Rh7 {[%emt 0:00:
00]} 33. Rf4 {[%emt 0:00:00]} Kg5 {[%emt 0:00:00]} 34. e4 {[%emt 0:00:00]} h4 {
[%emt 0:00:00]} 35. Rf5+ {[%emt 0:00:00]} Kg6 {[%emt 0:00:00]} 36. gxh4 {
[%emt 0:00:00]} Rxh4 {[%emt 0:00:00]} 37. Ke3 {[%emt 0:00:00]} b6 {[%emt 0:00:
00]} 1/2-1/2

[Event "I Liga Centralne Srbije"]
[Site "Bajina Bašta, Serbia"]
[Date "2020.10.15"]
[Round "9.5"]
[White "Dudin, Gleb"]
[Black "Dimitrov, Radoslav"]
[Result "1-0"]
[ECO "A53"]
[WhiteElo "2386"]
[BlackElo "2507"]
[Annotator "Knez"]
[PlyCount "81"]
[EventDate "2020.??.??"]
[TimeControl "90"]
[WhiteClock "0:23:56"]
[BlackClock "0:00:47"]

1. d4 {[%emt 0:00:00]} Nf6 {[%emt 0:00:00]} 2. c4 {[%emt 0:00:00]} d6 {[%emt 0:
00:00]} 3. Nc3 {[%emt 0:00:00]} e5 {[%emt 0:00:00]} 4. dxe5 {[%emt 0:00:00]}
dxe5 {[%emt 0:00:00]} 5. Qxd8+ {[%emt 0:00:00]} Kxd8 {[%emt 0:00:00]} 6. Nf3 {
[%emt 0:00:00]} Nfd7 {[%emt 0:00:00]} 7. g4 {[%emt 0:00:00]} c6 {[%emt 0:00:00]
} 8. h4 {[%emt 0:00:00]} f6 {[%emt 0:00:00]} 9. Bh3 {[%emt 0:00:00]} Nb6 {
[%emt 0:00:00]} 10. b3 {[%emt 0:00:00]} h5 {[%emt 0:00:00]} 11. g5 {[%emt 0:00:
00]} Bg4 {[%emt 0:00:00]} 12. gxf6 {[%emt 0:00:00]} gxf6 {[%emt 0:00:00]} 13.
Nd2 {[%emt 0:00:00]} N8d7 {[%emt 0:00:00]} 14. Nde4 {[%emt 0:00:00]} Kc7 {
[%emt 0:00:00]} 15. f3 {[%emt 0:00:00]} Bxh3 {[%emt 0:00:00]} 16. Rxh3 {
[%emt 0:00:00]} Be7 {[%emt 0:00:00]} 17. Be3 {[%emt 0:00:00]} Rag8 {[%emt 0:00:
00]} 18. O-O-O {[%emt 0:00:00]} f5 {[%emt 0:00:00]} 19. Ng5 {[%emt 0:00:00]}
Rg6 {[%emt 0:00:00]} 20. Kc2 {[%emt 0:00:00]} Rhg8 {[%emt 0:00:00]} 21. f4 {
[%emt 0:00:00]} e4 {[%emt 0:00:00]} 22. Bd4 {[%emt 0:00:00]} Nf6 {[%emt 0:00:
00]} 23. e3 {[%emt 0:00:00]} Ng4 {[%emt 0:00:00]} 24. Ne2 {[%emt 0:00:02]} Nf2
{[%emt 0:00:00]} 25. Rhh1 {[%emt 0:00:01]} Nxh1 {[%emt 0:00:00]} 26. Rxh1 {
[%emt 0:00:00]} Bf6 {[%emt 0:00:00]} 27. Be5+ {[%emt 0:00:00]} Bxe5 {[%emt 0:
00:00]} 28. fxe5 {[%emt 0:00:00]} Nd7 {[%emt 0:00:00]} 29. e6 {[%emt 0:00:00]}
Ne5 {[%emt 0:00:00]} 30. Nf4 {[%emt 0:00:11]} Rh6 {[%emt 0:00:00]} 31. Rd1 {
[%emt 0:00:13]} Rg7 {[%emt 0:00:00]} 32. Rd2 {[%emt 0:00:32]} Rh8 {[%emt 0:00:
00]} 33. Rd1 {[%emt 0:00:00]} Kc8 {[%emt 0:00:00]} 34. Kc3 {[%emt 0:00:00]} Kc7
{[%emt 0:00:00]} 35. b4 {[%emt 0:00:00]} Nf3 {[%emt 0:00:00]} 36. Nf7 {[%emt 0:
00:00]} Re8 {[%emt 0:00:00]} 37. Rd7+ {[%emt 0:00:00]} Kb8 {[%emt 0:00:00]} 38.
Nxh5 {[%emt 0:00:00]} Rgg8 {[%emt 0:00:00]} 39. Nf4 {[%emt 0:00:00]} Nxh4 {
[%emt 0:00:00]} 40. Nd6 {[%emt 0:00:00]} Rd8 {[%emt 0:00:00]} 41. Rxd8+ {
[%emt 0:00:00]} 1-0

[Event "I Liga Centralne Srbije"]
[Site "Bajina Bašta, Serbia"]
[Date "2020.10.15"]
[Round "9.5"]
[White "Markovic, Miroslav"]
[Black "Djordjevic, Vuk"]
[Result "1/2-1/2"]
[ECO "A07"]
[WhiteElo "2372"]
[BlackElo "2347"]
[Annotator "Knez"]
[PlyCount "103"]
[EventDate "2020.??.??"]
[TimeControl "90"]
[WhiteClock "0:00:33"]
[BlackClock "0:15:53"]

1. Nf3 {[%emt 0:00:00]} Nf6 {[%emt 0:00:00]} 2. g3 {[%emt 0:00:00]} e6 {
[%emt 0:00:00]} 3. Bg2 {[%emt 0:00:00]} d5 {[%emt 0:00:00]} 4. O-O {[%emt 0:00:
00]} Be7 {[%emt 0:00:00]} 5. d3 {[%emt 0:00:00]} O-O {[%emt 0:00:00]} 6. c3 {
[%emt 0:00:00]} c5 {[%emt 0:00:00]} 7. Qc2 {[%emt 0:00:00]} Nc6 {[%emt 0:00:00]
} 8. e4 {[%emt 0:00:00]} b5 {[%emt 0:00:00]} 9. Re1 {[%emt 0:00:00]} Re8 {
[%emt 0:00:00]} 10. e5 {[%emt 0:00:00]} Nd7 {[%emt 0:00:00]} 11. h4 {[%emt 0:
00:00]} f6 {[%emt 0:00:00]} 12. exf6 {[%emt 0:00:00]} Nxf6 {[%emt 0:00:00]} 13.
Nbd2 {[%emt 0:00:00]} Bd6 {[%emt 0:00:00]} 14. a4 {[%emt 0:00:00]} b4 {[%emt 0:
00:00]} 15. c4 {[%emt 0:00:00]} Bb7 {[%emt 0:00:00]} 16. Nb3 {[%emt 0:00:00]}
Na5 {[%emt 0:00:00]} 17. Nxa5 {[%emt 0:00:00]} Qxa5 {[%emt 0:00:00]} 18. Ng5 {
[%emt 0:00:00]} Qc7 {[%emt 0:00:00]} 19. Bd2 {[%emt 0:00:00]} Bxg3 {[%emt 0:00:
00]} 20. fxg3 {[%emt 0:00:00]} Qxg3 {[%emt 0:00:00]} 21. Re3 {[%emt 0:00:00]}
Qxh4 {[%emt 0:00:00]} 22. Nf3 {[%emt 0:00:00]} Qh5 {[%emt 0:00:00]} 23. Re5 {
[%emt 0:00:00]} Qf7 {[%emt 0:00:00]} 24. Rf1 {[%emt 0:00:00]} Qc7 {[%emt 0:00:
00]} 25. Ree1 {[%emt 0:00:00]} Qg3 {[%emt 0:00:00]} 26. Qc1 {[%emt 0:00:00]}
dxc4 {[%emt 0:00:00]} 27. Qxc4 {[%emt 0:00:00]} Bd5 {[%emt 0:00:00]} 28. Qf4 {
[%emt 0:00:00]} Qg6 {[%emt 0:00:00]} 29. d4 {[%emt 0:00:00]} cxd4 {[%emt 0:00:
00]} 30. Qxd4 {[%emt 0:00:00]} a5 {[%emt 0:00:00]} 31. Re5 {[%emt 0:00:00]}
Rad8 {[%emt 0:00:00]} 32. Qf4 {[%emt 0:00:00]} h6 {[%emt 0:00:00]} 33. Re2 {
[%emt 0:00:00]} Rf8 {[%emt 0:00:21]} 34. Ne5 {[%emt 0:00:00]} Qh5 {[%emt 0:00:
05]} 35. Qe3 {[%emt 0:00:00]} Ng4 {[%emt 0:00:29]} 36. Rxf8+ {[%emt 0:00:00]}
Rxf8 {[%emt 0:00:00]} 37. Nxg4 {[%emt 0:00:00]} Qxg4 {[%emt 0:00:00]} 38. Be1 {
[%emt 0:00:00]} Rf3 {[%emt 0:00:00]} 39. Qd2 {[%emt 0:00:00]} Rf4 {[%emt 0:00:
00]} 40. Re3 {[%emt 0:00:00]} Rd4 {[%emt 0:00:01]} 41. Qe2 {[%emt 0:00:00]} Qf5
{[%emt 0:00:00]} 42. Rg3 {[%emt 0:00:00]} Bc4 {[%emt 0:00:00]} 43. Qe3 {
[%emt 0:00:00]} Rd1 {[%emt 0:00:00]} 44. Kh2 {[%emt 0:00:00]} Rd3 {[%emt 0:00:
00]} 45. Qe4 {[%emt 0:00:00]} Qh5+ {[%emt 0:00:00]} 46. Rh3 {[%emt 0:00:00]}
Rxh3+ {[%emt 0:00:00]} 47. Bxh3 {[%emt 0:00:00]} Bd5 {[%emt 0:00:00]} 48. Qe3 {
[%emt 0:00:00]} Qg6 {[%emt 0:00:00]} 49. Bf2 {[%emt 0:00:00]} Kh8 {[%emt 0:00:
00]} 50. Qe5 {[%emt 0:00:00]} Qc2 {[%emt 0:00:00]} 51. Kg3 {[%emt 0:00:00]}
Qxa4 {[%emt 0:00:01]} 52. Bd4 {[%emt 0:00:00]} 1/2-1/2